Cogmind - Beta 14 @@@ ROGUE MODE // 2024.11.10 @ 01:43:33 Player: Udabudha Result: Destroyed by D-53 Grenadier with Mini Grenade Launcher Performance ------------- Evolutions (0) 0 Regions Visited (4) 800 Robots Destroyed (15) 75 Value Destroyed (306) 306 Prototype IDs (1) 20 Alien Tech Used (0) 0 Bonus (0) 0 TOTAL SCORE: 1201 Bonus ------- None Cogmind --------- Core Integrity 0/250 Matter 295/300 Energy 85/100 System Corruption 0% Temperature Cool (57) Movement Core (150) Ox2 Location -9/Mines Parts ------- > --- POWER (1) -------- (None) > --- PROPULSION (2) --- (None) > --- UTILITY (2) ------ Small Storage Unit Supersonic Drone Bay (1/1) > --- WEAPON (2) ------- Beam Cannon > --- INVENTORY (8) ---- Ion Engine Light Treads Light Armor Plating EM Pulse Gun EM Pulse Gun Beam Rifle Peak State ------------ > --- POWER ------------ Light Nuclear Core > --- PROPULSION ------- Aluminum Leg Aluminum Leg > --- UTILITY ---------- Small Storage Unit Supersonic Drone Bay > --- WEAPON ----------- Beam Cannon Beam Cannon > --- INVENTORY -------- Ion Engine Light Treads Compact Wheel Compact Wheel Light Armor Plating EM Pulse Gun EM Pulse Gun Beam Rifle [Rating: 16] Favorites ----------- Power Light Nuclear Core Engine Ion Engine Power Core Light Nuclear Core Propulsion Aluminum Leg Leg Aluminum Leg Wheel Compact Wheel Utility Small Storage Unit Device Supersonic Drone Bay Storage Small Storage Unit Protection Light Armor Plating Weapon EM Pulse Gun Energy Gun EM Pulse Gun Energy Cannon Beam Cannon Ballistic Gun Light Assault Rifle Build | -11 -10 -10 -10 -9 ------- Run | Yrd Mat Min Exi Min Slots Evolved . | . . . . . Power . | . . . . . Propulsion . | . . . . . Utility . | . . . . . Weapon . | . . . . . Parts Attached 15 | 7 . 3 3 2 Power 2 | 1 . 1 . . Engine 1 | 1 . . . . Core 1 | . . 1 . . Reactor . | . . . . . Propulsion 4 | 2 . . . 2 Treads . | . . . . . Leg 2 | 2 . . . . Wheel 2 | . . . . 2 Hover . | . . . . . Flight . | . . . . . Utility 3 | 1 . 1 1 . Device 1 | . . . 1 . Storage 1 | 1 . . . . Processor . | . . . . . Hackware . | . . . . . Protection 1 | . . 1 . . Artifact . | . . . . . Weapon 6 | 3 . 1 2 . Energy Gun 3 | 2 . 1 . . Energy Cannon 2 | . . . 2 . Ballistic Gun 1 | 1 . . . . Ballistic Cannon . | . . . . . Launcher . | . . . . . Special Weapon . | . . . . . Impact Weapon . | . . . . . Slashing Weapon . | . . . . . Piercing Weapon . | . . . . . Special Melee Weapon . | . . . . . Unidentified Prototypes 1 | . . . 1 . Parts Lost 7 | . . 1 . 6 Power 2 | . . 1 . 1 Propulsion 4 | . . . . 4 Utility . | . . . . . Weapon 1 | . . . . 1 Highest Loss Streak 6 | . . 1 . 6 To Critical Strikes . | . . . . . Average Slot Usage (%) 96 | . 85 97 100 96 Engine 3 | . 14 3 . . Core 10 | . . 10 14 12 Leg 27 | . 28 28 28 24 Device 2 | . . . 6 14 Storage 14 | . 14 14 14 14 Protection 8 | . . 11 7 . Energy Gun 21 | . 28 28 14 . Energy Cannon 6 | . . . 13 28 Peak Build Rating 16 | 6 6 10 16 16 Average Rating 10 | 4 6 9 12 15 On Entrance 7 | . 6 6 10 16 Naked Turns . | . . . . . Heaviest Build 19 | 14 14 18 19 17 Greatest Support 32 | 20 20 20 20 32 Greatest Overweight (x) 1 | . . . . 1 Average Overweight (x) . | . . . . . Largest Inventory Capacity 8 | 8 8 8 8 8 Average Capacity 7 | 6 8 8 8 8 Most Carried 8 | 7 8 8 8 8 Average Carried 7 | 3 6 7 7 7 Final Capacity 8 | 8 8 8 8 8 Final Carried 8 | 6 8 8 8 6 Class Distribution -------------------- 100% | Mutant Dominant Class ---------------- Mutant | -10/Materials Mutant | -10/Mines Mutant | -10/Exiles Mutant | -9/Mines Resources | -11 -10 -10 -10 -9 ----------- Run | Yrd Mat Min Exi Min Matter Collected 330 | 217 53 30 . 30 Remotely . | . . . . . Salvage Created 405 | . 49 305 . 51 Parts 32 | . . 29 . 3 Haulers Intercepted . | . . . . . Recyclers Shooed . | . . . . . Parts Field Recycled . | . . . . . Retrieved Matter . | . . . . . Parts Self-Destructed . | . . . . . Prevented . | . . . . . Kills | -11 -10 -10 -10 -9 ------- Run | Yrd Mat Min Exi Min Combat Hostiles Destroyed 15 | . 1 10 . 4 Guns 9 | . 1 8 . . Cannons 4 | . . . . 4 AOE 2 | . . 2 . . Classes Destroyed 5 | . 1 3 . 1 Worker 1 | . . 1 . . Swarmer 9 | . . 6 . 3 Grunt 3 | . 1 2 . . Sentry 2 | . . 2 . . Assembled 1 | . . . . 1 Best Kill Streak 7 | . 1 7 . 3 Combat Bots Only 6 | . 1 6 . 3 Max Kills in Single Turn 2 | . 1 2 . 1 Gunslinging 1 | . . 1 . . Exploded 1 | . . 1 . . Melee . | . . . . . Uniques/NPCs Destroyed . | . . . . . Combat | -11 -10 -10 -10 -9 -------- Run | Yrd Mat Min Exi Min Hostile Shots Fired 74 | . 13 29 . 32 Missed 14 | . 6 5 . 3 Damage Taken 1055 | . 77 319 . 659 Core 254 | . 11 73 . 170 Absorbed by Shields . | . . . . . Core Remaining (%) 100 | 100 . . . . Volleys Fired 34 | . 4 14 6 10 Largest 2 | . 2 2 2 2 Hottest 120 | . 80 96 120 120 Shots Fired 68 | . 8 28 12 20 Gun 40 | . 8 28 4 . Cannon 28 | . . . 8 20 Launcher . | . . . . . Special . | . . . . . Kinetic . | . . . . . Thermal 42 | . . 12 10 20 Explosive . | . . . . . Electromagnetic 26 | . 8 16 2 . Robot Hit Streak 10 | . 4 10 . 3 Robot Miss Streak 2 | . 2 1 . 2 Penetration Max . | . . . . . Secondary Targets 1 | . . 1 . . Max Gunslinging Chain 1 | . . 1 . . Shots Hit Robots 34 | . 6 18 . 10 Core Hits 21 | . 2 14 . 5 Critical Kills . | . . . . . Critical Parts Destroyed . | . . . . . Critical Strikes . | . . . . . Melee Attacks . | . . . . . Impact . | . . . . . Slashing . | . . . . . Piercing . | . . . . . Sneak Attacks . | . . . . . Combat Hostiles . | . . . . . Follow-up Attacks . | . . . . . Damage Inflicted 635 | . 81 359 . 195 Guns 314 | . 81 233 . . Cannons 195 | . . . . 195 Explosions 126 | . . 126 . . Melee . | . . . . . Ramming . | . . . . . Kinetic . | . . . . . Thermal 409 | . . 214 . 195 Explosive . | . . . . . Electromagnetic 226 | . 81 145 . . Impact . | . . . . . Slashing . | . . . . . Piercing . | . . . . . Highest Corruption . | . . . . . Average Corruption . | . . . . . Corruption Purged . | . . . . . Corruption Blocked . | . . . . . Overload Shots . | . . . . . Overflow Damage . | . . . . . Projectiles . | . . . . . Explosions . | . . . . . Melee . | . . . . . Knockbacks . | . . . . . Impact . | . . . . . Kinetic . | . . . . . Secondary . | . . . . . Self-Inflicted Damage 48 | . . 48 . . Shots 2 | . . 2 . . Rammed . | . . . . . Targets Rammed . | . . . . . Kicked . | . . . . . Crushed . | . . . . . Highest Temperature 396 | . 90 244 301 396 Average Temperature 124 | . 51 95 126 183 Received Heat Transfer 125 | . 42 63 . 20 Siege Activations . | . . . . . Robots Corrupted . | . . . . . Combat Hostiles . | . . . . . Parts Fried 1 | . 1 . . . Impact Corruptions . | . . . . . Robots Melted . | . . . . . Combat Hostiles . | . . . . . Parts Melted 2 | . . 2 . . Heat Transferred 829 | . . 422 . 407 Parts Sabotaged . | . . . . . Parts Stolen . | . . . . . Parts Stripped . | . . . . . Power Chain Reactions 2 | . . 2 . . Alert | -11 -10 -10 -10 -9 ------- Run | Yrd Mat Min Exi Min Peak Influence 298 | . 52 298 . 85 Initial 19 | . . 19 . . Average 77 | . 13 104 . 41 Maximum Alert Level 1 | . . 1 . . Low Security (%) 95 | 100 100 93 . 100 Level 1 4 | . . 6 . . Level 2 . | . . . . . Level 3 . | . . . . . Level 4 . | . . . . . Level 5 . | . . . . . High Security . | . . . . . Max Security . | . . . . . Squads Dispatched 2 | . 2 . . . Investigation 1 | . 1 . . . Extermination . | . . . . . Reinforcement 1 | . 1 . . . Assault . | . . . . . Garrison . | . . . . . Intercept . | . . . . . Searches Triggered . | . . . . . Construction Impeded . | . . . . . Haulers Reinforced . | . . . . . Active Scanning Responses . | . . . . . Cargo Convoy Interrupts . | . . . . . Stealth | -11 -10 -10 -10 -9 --------- Run | Yrd Mat Min Exi Min Distress Signals . | . . . . . Communications Jammed . | . . . . . Distress Signals . | . . . . . Times Spotted 25 | . 4 10 . 11 Peak Tracking Total 5 | . 2 3 . 5 Tactical Retreats 1 | . . 1 . . Traps | -11 -10 -10 -10 -9 ------- Run | Yrd Mat Min Exi Min Traps Triggered . | . . . . . Indirectly . | . . . . . Trap Hack Attempts . | . . . . . Triggered . | . . . . . Disarmed . | . . . . . Reprogrammed . | . . . . . Reused . | . . . . . Traps Extracted . | . . . . . Installed . | . . . . . Triggered . | . . . . . Machines | -11 -10 -10 -10 -9 ---------- Run | Yrd Mat Min Exi Min Machines Disabled 1 | . . 1 . . Max in Single Turn 1 | . . 1 . . Machines Repaired . | . . . . . Machines Dismantled . | . . . . . Machines Sabotaged . | . . . . . Overloaded Fab Kills . | . . . . . Hacking | -11 -10 -10 -10 -9 --------- Run | Yrd Mat Min Exi Min Machines Accessed 3 | . 2 . 1 . Terminals 2 | . 2 . . . Fabricators . | . . . . . Repair Stations . | . . . . . Recycling Units . | . . . . . Scanalyzers . | . . . . . Garrison Access . | . . . . . Total Hacks 5 | . 4 . 1 . Successful 2 | . 1 . 1 . Failed 3 | . 3 . . . Catastrophic 2 | . 2 . . . Database Lockouts . | . . . . . Manual 6 | . . . 6 . Terminals 4 | . 4 . . . Fabricators . | . . . . . Repair Stations . | . . . . . Recycling Units . | . . . . . Scanalyzers . | . . . . . Garrison Access . | . . . . . Terminal Hacks 2 | . 1 . 1 . Record 1 | . . . 1 . Branch Access Points 1 | . 1 . . . Fabricator Hacks . | . . . . . Repair Station Hacks . | . . . . . Recycling Unit Hacks . | . . . . . Scanalyzer . | . . . . . Garrison Access Hacks . | . . . . . Unauthorized Hacks . | . . . . . Terminals . | . . . . . Fabricators . | . . . . . Repair Stations . | . . . . . Recycling Units . | . . . . . Scanalyzers . | . . . . . Garrison Access . | . . . . . Data Cores Recovered . | . . . . . Used . | . . . . . Hacking Detections 1 | . 1 . . . Full Trace Events 1 | . 1 . . . Feedback Events . | . . . . . Feedback Blocked . | . . . . . Robot Schematics Acquired . | . . . . . Robots Built . | . . . . . Authchips . | . . . . . Time . | . . . . . Total Robot Build Rating . | . . . . . Part Schematics Acquired . | . . . . . Parts Built . | . . . . . Authchips . | . . . . . Time . | . . . . . Total Part Build Rating . | . . . . . Parts Repaired . | . . . . . Time . | . . . . . Parts Recycled . | . . . . . Recycled Matter . | . . . . . Retrieved Matter . | . . . . . Retrieved Components . | . . . . . Parts Scanalyzed . | . . . . . Part Schematics Acquired . | . . . . . Parts Damaged . | . . . . . Bothacking | -11 -10 -10 -10 -9 ------------ Run | Yrd Mat Min Exi Min Used RIF Installer . | . . . . . Robots Hacked . | . . . . . Non-combat . | . . . . . Combat . | . . . . . Robot Hacks Applied . | . . . . . Relay Couplers Released . | . . . . . Fabnet Peak Effective % . | . . . . . Robots Rewired . | . . . . . Allies Hacked . | . . . . . Hacks Repelled . | . . . . . Allies | -11 -10 -10 -10 -9 -------- Run | Yrd Mat Min Exi Min Total Allies . | . . . . . Largest Group . | . . . . . Highest-Rated Group . | . . . . . Highest-Rated Ally . | . . . . . Total Orders 6 | . . . 5 1 ROAM 2 | . . . 2 . EXPLORE 2 | . . . 1 1 RETURN 2 | . . . 2 . Ally Attacks . | . . . . . Total Damage . | . . . . . Kills . | . . . . . Allies Corrupted . | . . . . . Allies Melted . | . . . . . Intel | -11 -10 -10 -10 -9 ------- Run | Yrd Mat Min Exi Min Robot Analysis Total . | . . . . . Derelict Logs Recovered 1 | . . 1 . . Drone Launches 3 | . . . 2 1 Drone Recoveries 3 | . . . 2 1 Exploration | -11 -10 -10 -10 -9 ------------- Run | Yrd Mat Min Exi Min Turns Passed 1405 | 67 145 675 423 95 Spaces Moved 970 | 43 107 502 265 53 Core 5 | 5 . . . . Treads . | . . . . . Legs 959 | 38 107 502 265 47 Wheels 6 | . . . . 6 Hover . | . . . . . Flight . | . . . . . Fastest Speed 50 | 50 120 120 120 100 Average Speed 119 | 111 120 120 120 119 Slowest Speed 190 | 120 120 120 120 190 Overloaded Moves . | . . . . . Propulsion Burnouts . | . . . . . Robots Hopped . | . . . . . Cave-ins Triggered . | . . . . . Exploration Rate (%) 57 | 4 31 91 96 67 Regions Visited 4 Branch Regions 3 Pre-discovered Areas . | . . . . . Known Exits Taken 1 | . 1 . . . Unknown Exits Taken 3 | 1 . 1 1 . Scrap Searched 4 | . . 2 . 2 Spaces Dug . | . . . . . Terrain Destroyed 7 | . . 7 . . Melee . | . . . . . Projectile . | . . . . . AOE 7 | . . 7 . . Terrain Rammed . | . . . . . Walls Destroyed . | . . . . . Machines Disabled . | . . . . . Actions | -11 -10 -10 -10 -9 --------- Run | Yrd Mat Min Exi Min Total 1149 | 62 115 548 359 65 Wait 95 | . 3 23 69 . Move 966 | 42 106 501 264 53 Hop . | . . . . . Pick Up 19 | 12 2 3 2 . Fast Attach 4 | . . 3 1 . Attach 11 | 7 . . 2 2 Detach 1 | 1 . . . . Swap . | . . . . . Drop 7 | . . 4 3 . Fire 34 | . 4 14 6 10 Melee . | . . . . . Ram . | . . . . . Kick . | . . . . . Crush . | . . . . . Escape Stasis . | . . . . . Rewire 12 | . . . 12 . Trap . | . . . . . Miscellaneous . | . . . . . Route ------- -11/Scrapyard -10/Materials (discovered 2 exits: *Min x2) -10/Mines (discovered 2 exits: [*Mat] / *Exi) -10/Exiles (discovered 2 exits: [*Min x2]) -9/Mines (discovered 1 exit: [*Mat]) History --------- Turn | Location | Event 14 | -11/Scrapyard | Discovered new exit (range 15) 68 | -11/Scrapyard | Entered Materials 186 | -10/Materials | Identified exit to Mines 213 | -10/Materials | Entered Mines 216 | -10/Mines | Met a Derelict bent on vengeance 309 | -10/Mines | Build established: Mutant 480 | -10/Mines | Learned Materials stockpile data 584 | -10/Mines | Discovered new exit (range 8) 882 | -10/Mines | Deemed a non-threat by the Exiles lab entrance 883 | -10/Mines | Discovered new exit (range 5) 888 | -10/Mines | Entered Exiles 888 | -10/Exiles | Found Exiles lab destroyed 1123 | -10/Exiles | Opened EX-Vault 1127 | -10/Exiles | Found Prototype Device 1127 | -10/Exiles | Identified Supersonic Drone Bay 1186 | -10/Exiles | Discovered new exit (range 54) 1191 | -10/Exiles | Discovered new exit (range 62) 1311 | -10/Exiles | Entered Mines 1320 | -9/Mines | Discovered new exit (range 38) 1371 | -9/Mines | Assembled infested the area 1399 | -9/Mines | Core integrity fell below 50% 1405 | -9/Mines | Core integrity fell below 20% 1406 | -9/Mines | Destroyed by D-53 Grenadier with Mini Grenade Launcher Last Messages --------------- Found 66 Matter. S-10 Pest destroyed. K-01 Serf collects debris. ALERT: Infestation in the mines, dispatching Demolisher response squad. T-07 Excavator is excavating. as-63771 destroyed. C-30 ARC bursts open, deploying its payload. D-53 Grenadier unfolds itself. as-92348 destroyed. Aluminum Leg destroyed. Lgt. Nuclear Core destroyed. Aluminum Leg destroyed. as-78008 destroyed. as-97119 destroyed. as-09634 destroyed. The unstable cave ceiling collapses. Com. Wheel destroyed. Beam Cannon destroyed. Com. Wheel destroyed. Map ----- +----------------------------------------------------+ | ??# ## ####??# ##### | | ??# ############ #?????## ##????? | | ??# ##??????????? ??????## ##?????? | | ??# #??????????? ??????# #??????? | | ??# #??????????? """ ??????# ??????? | | ??# #??????????? """ #?????## ?????? | | ??# #??????????# """ ??????? ##????? | | ??# #??????????# ###??????# ##?????? | | ??# #??????????# ##?????????###??????? | | ??# #??????????## ##???????????????????? | | ??# #???????????###?????????????????????? | | ??# #???????????????????????????????????? | | ??# #???????????????????????????????##### | | ??# #??????????????????????????????## | | ??# #??????????????????????????????# | | ??# #??????????????????????????????# | | ??# ###????????????????????????????## | | ??# #?????????????????????????????## | | ??#### #??????????????????????????????## | | ?????# #????????????###????????????????# | | ?????# #??????####### ##############???# | | ?????# #?????## # d ##??# | | ?????# #????## d #??# | | ?????# #????# ###### #??## | | ?????# #????# < #????# #???## | | ?????# ###### @ ###### ##???# | | ?????# a $ # ## ##??? | | ?????######## ## %#### | | ????????????## ### [==% | | ?????????????##### # # ##?## ## ##### | | ?????????????????##########??# ?####???? | | ?????????????????????????????# ????????? | | ?????????????????????????????# ????????? | | ????????????????????????????? ?????????? | | ????????????????????????????####?????????? | | ?????????????????????????????????????????? | | ?????????????????????????????????????????? | | ?????????????????????????????????????????? | | ?????????????????????????????????????????? | | ?????????????????????????????????????????? | | ?????????????????????????????????????????? | | | | | | | | | | | | | | | | | | | +----------------------------------------------------+ Best States ------------- Heat Dissipation 25 Energy Generation 14 Energy Capacity 250 Matter Stores 300 Matter Capacity 300 Sight Range 16 Terrain Scan Density 10 Armor Coverage 150 Evasion (%) 55 Item Schematics ----------------- None Robot Schematics ------------------ None Fabricated ------------ Nothing Alien Tech Used ----------------- None Achievements -------------- None Challenges ------------ None Game ------ Seed ProtonPhysicsPerforator Manual? 0 Play Time 00:13:55 Cumulative 11.9 hours Start 2024.11.04 @ 23:41:26 End 2024.11.10 @ 01:43:33 Sessions 8 Manual Loads 0 Difficulty Rogue Special Mode None Game No. 30 Rogue 27 Adventurer 1 Explorer 2 Win Type - Total 0 Types 0/0/0/0/0/0/0/0/0 Lore% 12 Gallery% 20 Achievement% 18 Wizard Run 0 Options --------- Layout 1 ASCII 0 Keyboard 0 Movement Numpad Keybinds 0 Fullscreen 1 Font 48/Smallcaps Map View 50x35 Zoom Use 0% Tactical HUD 0 Map Filters NONE Filters NONE Steam 1 RUN: feb30fef-b5d1-44ba-a8b8-49620bd5dc2d